Cogmind - Beta 11.1 @@@ ROGUE MODE // 2022.05.14 @ 10:50:48 Player: RX86 Result: Destroyed by Y-45 Defender with Beam Rifle Performance ------------- Evolutions (1) 500 Regions Visited (2) 400 Robots Destroyed (6) 30 Value Destroyed (109) 109 Prototype IDs (2) 40 Alien Tech Used (0) 0 Bonus (0) 0 TOTAL SCORE: 1079 Bonus ------- None Cogmind --------- Core Integrity 0/400 Matter 145/300 Energy 100/100 System Corruption 7% Temperature Cool (9) Movement Core (50) Location -9/Materials Parts ------- > --- POWER (1) -------- (None) > --- PROPULSION (2) --- (None) > --- UTILITY (4) ------ Signal Interpreter Salvage Targeting Computer > --- WEAPON (2) ------- Hammer > --- INVENTORY (5) ---- Small Storage Unit Trap Extractor (0/4) Improved Medium Laser Mini Grenade Launcher Peak State ------------ > --- POWER ------------ Light Ion Engine > --- PROPULSION ------- Aluminum Leg Hover Unit > --- UTILITY ---------- Salvage Targeting Computer > --- WEAPON ----------- Improved Medium Laser Advanced Beam Cannon > --- INVENTORY -------- Aluminum Leg Small Storage Unit Medium Storage Unit Mini Grenade Launcher Hammer [Rating: 11] Favorites ----------- Power Light Ion Engine Engine Light Ion Engine Propulsion Aluminum Leg Leg Aluminum Leg Wheel Wheel Hover Unit Hover Unit Utility Structural Scanner Device Structural Scanner Storage Large Storage Unit Processor Salvage Targeting Computer Weapon Hammer Energy Gun Improved Medium Laser Energy Cannon Advanced Beam Cannon Ballistic Gun Assault Rifle Impact Weapon Hammer Build | -11 -10 -9 ------- Run | Scr Mat Mat Slots Evolved 2 | . . 2 Power . | . . . Propulsion . | . . . Utility 2 | . . 2 Weapon . | . . . Parts Attached 24 | 6 6 12 Power 3 | 1 . 2 Engine 3 | 1 . 2 Core . | . . . Reactor . | . . . Propulsion 6 | 2 1 3 Treads . | . . . Leg 3 | 2 . 1 Wheel 2 | . . 2 Hover 1 | . 1 . Flight . | . . . Utility 6 | 1 3 2 Device 1 | . 1 . Storage 3 | 1 2 . Processor 2 | . . 2 Hackware . | . . . Protection . | . . . Artifact . | . . . Weapon 9 | 2 2 5 Energy Gun 1 | . . 1 Energy Cannon 1 | . . 1 Ballistic Gun 2 | 2 . . Ballistic Cannon . | . . . Launcher . | . . . Special Weapon . | . . . Impact Weapon 5 | . 2 3 Slashing Weapon . | . . . Piercing Weapon . | . . . Special Melee Weapon . | . . . Unidentified Prototypes 2 | . . 2 Parts Lost 10 | . 3 7 Power 2 | . 1 1 Propulsion 6 | . 2 4 Utility 1 | . . 1 Weapon 1 | . . 1 Highest Loss Streak 5 | . 2 5 To Critical Strikes . | . . . Average Slot Usage (%) 74 | . 85 62 Engine 9 | . 9 9 Leg 15 | . 22 5 Wheel 2 | . . 5 Hover 3 | . 1 6 Device 7 | . 9 5 Storage 6 | . 12 . Processor 5 | . . 12 Energy Gun 1 | . . 2 Ballistic Gun 10 | . 19 . Impact Weapon 10 | . 8 13 Naked Turns . | . . . Heaviest Build 27 | 11 27 13 Greatest Support 20 | 20 20 20 Greatest Overweight (x) 8 | 3 8 3 Average Overweight (x) . | . . . Largest Inventory Capacity 15 | 8 15 5 Average Capacity 9 | 7 12 5 Most Carried 7 | 1 7 5 Average Carried 4 | . 5 3 Final Capacity 8 | 8 5 5 Final Carried 5 | 1 5 4 Class Distribution -------------------- 100% | Mutant Dominant Class ---------------- Mutant | -10/Materials Mutant | -9/Materials Resources | -11 -10 -9 ----------- Run | Scr Mat Mat Matter Collected 249 | 152 . 97 Remotely . | . . . Salvage Created 239 | . 50 189 Parts 9 | . 1 8 Haulers Intercepted 2 | . 1 1 Recyclers Shooed . | . . . Parts Field Recycled . | . . . Retrieved Matter . | . . . Parts Self-Destructed . | . . . Prevented . | . . . Kills | -11 -10 -9 ------- Run | Scr Mat Mat Combat Hostiles Destroyed 3 | . . 3 Guns 2 | . . 2 Classes Destroyed 4 | . 1 3 Worker 1 | . . 1 Hauler 2 | . 1 1 Grunt 2 | . . 2 Brawler 1 | . . 1 Best Kill Streak 2 | . 1 2 Combat Bots Only 2 | . . 2 Max Kills in Single Turn 1 | . 1 1 Gunslinging . | . . . Exploded . | . . . Melee . | . . . Uniques/NPCs Destroyed . | . . . Combat | -11 -10 -9 -------- Run | Scr Mat Mat Damage Taken 1618 | . 688 930 Core 627 | . 227 400 Absorbed by Shields . | . . . Core Remaining (%) 54 | 100 9 . Volleys Fired 8 | . 1 7 Largest 2 | . 2 2 Hottest 124 | . 40 124 Shots Fired 13 | . 2 11 Gun 6 | . 2 4 Cannon 7 | . . 7 Launcher . | . . . Special . | . . . Kinetic 2 | . 2 . Thermal 11 | . . 11 Explosive . | . . . Electromagnetic . | . . . Robot Hit Streak 6 | . 1 6 Robot Miss Streak 1 | . 1 1 Penetration Max . | . . . Secondary Targets . | . . . Shots Hit Robots 23 | . 3 20 Core Hits 6 | . 1 5 Critical Kills . | . . . Critical Parts Destroyed 2 | . . 2 Critical Strikes 2 | . . 2 Smash 2 | . . 2 Melee Attacks 30 | . 3 27 Impact 30 | . 3 27 Slashing . | . . . Piercing . | . . . Sneak Attacks 5 | . 1 4 Combat Hostiles . | . . . Follow-up Attacks 1 | . . 1 Damage Inflicted 675 | . 112 563 Guns 76 | . 7 69 Cannons 81 | . . 81 Explosions . | . . . Melee 517 | . 105 412 Ramming 1 | . . 1 Kinetic 7 | . 7 . Thermal 150 | . . 150 Explosive . | . . . Electromagnetic . | . . . Impact 517 | . 105 412 Slashing . | . . . Piercing . | . . . Highest Corruption 7 | . . 7 Average Corruption 6 | . . 6 Corruption Purged . | . . . Corruption Blocked . | . . . Effects 7 | . . 7 Message Errors 1 | . . 1 Matter Fused 3 | . . 3 Energy Discharges 2 | . . 2 Data Loss (major) 1 | . . 1 Overload Shots . | . . . Overflow Damage 128 | . 52 76 Projectiles . | . . . Explosions . | . . . Melee 128 | . 52 76 Knockbacks . | . . . Impact . | . . . Kinetic . | . . . Secondary . | . . . Self-Inflicted Damage . | . . . Shots . | . . . Rammed . | . . . Targets Rammed 2 | . . 2 Kicked 2 | . . 2 Crushed . | . . . Highest Temperature 197 | . 9 197 Average Temperature 65 | . 4 78 Received Heat Transfer 837 | . 501 336 Siege Activations . | . . . Robots Corrupted . | . . . Combat Hostiles . | . . . Parts Fried 1 | . 1 . Impact Corruptions 5 | . 2 3 Robots Melted . | . . . Combat Hostiles . | . . . Parts Melted 2 | . . 2 Heat Transferred 296 | . . 296 Parts Sabotaged . | . . . Parts Stolen . | . . . Parts Stripped . | . . . Power Chain Reactions . | . . . Missiles Intercepted . | . . . Alert | -11 -10 -9 ------- Run | Scr Mat Mat Peak Influence 137 | . 30 137 Initial 12 | . . 12 Average 28 | . 7 57 Maximum Alert Level . | . . . Low Security (%) 100 | 100 100 100 Level 1 . | . . . Level 2 . | . . . Level 3 . | . . . Level 4 . | . . . Level 5 . | . . . High Security . | . . . Max Security . | . . . Squads Dispatched 3 | . 2 1 Investigation 1 | . 1 . Extermination . | . . . Reinforcement 2 | . 1 1 Assault . | . . . Garrison . | . . . Intercept . | . . . Searches Triggered . | . . . Construction Impeded . | . . . Haulers Reinforced . | . . . Active Scanning Responses . | . . . Cargo Convoy Interrupts . | . . . Stealth | -11 -10 -9 --------- Run | Scr Mat Mat Distress Signals 1 | . 1 . Communications Jammed . | . . . Distress Signals . | . . . Times Spotted 24 | . 8 16 Peak Tracking Total 8 | . 3 8 Tactical Retreats 2 | . 1 1 Traps | -11 -10 -9 ------- Run | Scr Mat Mat Traps Triggered . | . . . Indirectly . | . . . Trap Hack Attempts . | . . . Triggered . | . . . Disarmed . | . . . Reprogrammed . | . . . Reused . | . . . Traps Extracted . | . . . Installed . | . . . Triggered . | . . . Machines | -11 -10 -9 ---------- Run | Scr Mat Mat Machines Disabled . | . . . Max in Single Turn . | . . . Machines Sabotaged . | . . . Garrisons Compromised . | . . . Overloaded Fab Kills . | . . . Hacking | -11 -10 -9 --------- Run | Scr Mat Mat Machines Accessed 5 | . 3 2 Terminals 5 | . 3 2 Fabricators . | . . . Repair Stations . | . . . Recycling Units . | . . . Scanalyzers . | . . . Garrison Access . | . . . Total Hacks 16 | . 9 7 Successful 5 | . 1 4 Failed 11 | . 8 3 Catastrophic 1 | . 1 . Database Lockouts . | . . . Manual 9 | . 8 1 Terminals 16 | . 9 7 Fabricators . | . . . Repair Stations . | . . . Recycling Units . | . . . Scanalyzers . | . . . Garrison Access . | . . . Terminal Hacks 5 | . 1 4 Emergency Access Points 1 | . . 1 Locate Traps 2 | . 1 1 Registered Components 1 | . . 1 Zone Layout 1 | . . 1 Fabricator Hacks . | . . . Repair Station Hacks . | . . . Recycling Unit Hacks . | . . . Scanalyzer . | . . . Garrison Access Hacks . | . . . Unauthorized Hacks . | . . . Terminals . | . . . Fabricators . | . . . Repair Stations . | . . . Recycling Units . | . . . Scanalyzers . | . . . Garrison Access . | . . . Data Cores Recovered . | . . . Used . | . . . Hacking Detections 5 | . 3 2 Full Trace Events 1 | . 1 . Feedback Events . | . . . Feedback Blocked . | . . . Robot Schematics Acquired . | . . . Robots Built . | . . . Authchips . | . . . Time . | . . . Total Robot Build Rating . | . . . Part Schematics Acquired . | . . . Parts Built . | . . . Authchips . | . . . Time . | . . . Total Part Build Rating . | . . . Parts Repaired . | . . . Time . | . . . Parts Recycled . | . . . Recycled Matter . | . . . Retrieved Matter . | . . . Retrieved Components . | . . . Parts Scanalyzed . | . . . Part Schematics Acquired . | . . . Parts Damaged . | . . . Bothacking | -11 -10 -9 ------------ Run | Scr Mat Mat Used RIF Installer . | . . . Robots Hacked . | . . . Non-combat . | . . . Combat . | . . . Robot Hacks Applied . | . . . Relay Couplers Released . | . . . Fabnet Peak Effective % . | . . . Robots Rewired . | . . . Allies Hacked . | . . . Hacks Repelled . | . . . Allies | -11 -10 -9 -------- Run | Scr Mat Mat Total Allies . | . . . Largest Group . | . . . Highest-Rated Group . | . . . Highest-Rated Ally . | . . . Total Orders . | . . . Ally Attacks . | . . . Total Damage . | . . . Kills . | . . . Allies Corrupted . | . . . Allies Melted . | . . . Intel | -11 -10 -9 ------- Run | Scr Mat Mat Robot Analysis Total . | . . . Derelict Logs Recovered . | . . . Drone Launches . | . . . Drone Recoveries . | . . . Exploration | -11 -10 -9 ------------- Run | Scr Mat Mat Turns Passed 850 | 43 442 365 Spaces Moved 576 | 29 283 264 Core 84 | 10 7 67 Treads . | . . . Legs 333 | 19 196 118 Wheels 79 | . . 79 Hover 80 | . 80 . Flight . | . . . Fastest Speed 50 | 50 60 50 Average Speed 121 | 116 145 95 Slowest Speed 450 | 200 450 200 Overloaded Moves . | . . . Propulsion Burnouts . | . . . Robots Hopped . | . . . Cave-ins Triggered . | . . . Exploration Rate (%) 29 | 3 45 39 Regions Visited 2 Branch Regions . Pre-discovered Areas . | . . . Known Exits Taken . | . . . Unknown Exits Taken 2 | 1 1 . Scrap Searched . | . . . Spaces Dug 5 | . . 5 Terrain Destroyed 5 | . . 5 Melee 5 | . . 5 Projectile . | . . . AOE . | . . . Terrain Rammed . | . . . Walls Destroyed . | . . . Machines Disabled . | . . . Actions | -11 -10 -9 --------- Run | Scr Mat Mat Total 662 | 35 305 322 Wait 1 | . 1 . Move 574 | 28 282 264 Hop . | . . . Pick Up 12 | 1 7 4 Fast Attach 15 | 6 3 6 Attach 6 | . 1 5 Detach 3 | . . 3 Swap 3 | . 2 1 Drop 10 | . 5 5 Fire 8 | . 1 7 Melee 28 | . 3 25 Ram . | . . . Kick 2 | . . 2 Crush . | . . . Escape Stasis . | . . . Rewire . | . . . Trap . | . . . Miscellaneous . | . . . Route ------- -11/Scrapyard -10/Materials (discovered 2 exits: *Mat / [*Min]) -9/Materials History --------- Turn | Location | Event 12 | -11/Scrapyard | Discovered new exit (range 16) 44 | -11/Scrapyard | Entered Materials 305 | -10/Materials | Build established: Mutant 397 | -10/Materials | Core integrity fell below 50% 431 | -10/Materials | Core integrity fell below 20% 442 | -10/Materials | Discovered new exit (range 12) 458 | -10/Materials | Discovered new exit (range 16) 486 | -10/Materials | Entered another Materials area 486 | -9/Materials | Evolved 2 slots: Utility x2 732 | -9/Materials | Lost 5 parts (1p2n1u1w) 808 | -9/Materials | Core integrity fell below 50% 821 | -9/Materials | Core integrity fell below 20% 851 | -9/Materials | Destroyed by Y-45 Defender with Beam Rifle Last Messages --------------- 6x Alarm Trap Map updated. 00771_ Acquired Maul. 00779_ System corrupted: Substantial component data lost. 00797_ G-34 Mercenary destroyed. 00799_ System corrupted: Energy discharge (-92). 00799_ K-01 Serf collects debris. 00800_ T-07 Excavator is excavating. 00801_ Sneak attack on A-02 Transporter. 00803_ K-01 Serf collects debris. 00804_ T-07 Excavator is excavating. 00809_ U-05 Engineer destroyed. 00809_ Wheel destroyed. 00811_ Dropped Maul. 00812_ Dropped Imp. Ion Engine. 00814_ K-01 Serf collects debris. 00816_ Acquired Signal Interpreter. 00818_ Dropped Adv. Beam Cannon. 00819_ Acquired Trap Extractor. 00825_ System corrupted: Matter fused (-7). Map ----- +----------------------------------------------------+ | ???????????????????????# ]####### #???????? | | ???????????????????????# #?????????## ##???????? | | ???????????????????????? ???????????# %!#????????? | | ???????????????????????? ???????????# = #????????? | | ???????????????????????? ?????????#?# #???????# | | ???????????????????????? ?????????# # ##+####?## | | ???????????????????????? ?????????# | | ???????????????????????? ?????????# # #######??? | | ???????????????????????# #????????### #??? ????? | | ???????????????????????# #??????????# #??"""???? | | ??????????????????###??# #??????????#/ #?""""???? | | ??????????????????# ??# #??????????#* # """""??? | | ??????????????????# ?# #??????????# # """""??? | | ??????????????????# ?# #??????????# + """ ??? | | ??????????????????# # #??????????# # | | ??????????????????# ! # #############+## | | ??????????????????# + + [] #?######## | | ??????????????????# # ### """ !! #????????? | | ??????????????????###### #?# """ [! #????????? | | ??????????????????+ #?# """ #????????? | | ??????????????????###### #?# #????????? | | ???????????????????????# #########/######????????? | | ???????????????????????# #????????????? | | ???????????????????????########## #????????????? | | ??????????????????????########### #????????????? | | ??????????????????????# @ # #????????????? | | ??????????????????????# ! # #????????????? | | ??????????????????????# # #####????????? | | ??????????????????????# g Y +??????? | | ??????????????????????# """ """ #Y #######??????? | | ??????????????????????# """ """l# #????????????? | | ??????????????????????# """g""" # #????????????? | | ??????????????????????# # #????????????? | | ??????????????????????######;#### #????????????? | | ???????????????????????????###??# #????????????? | | ????????????????????????????????# #????????????? | | ????????????????????????????????? #????????????? | | ????????????????????????????????? ????????????? | | ????????????????????????????????? ????????????? | | ????????????????????????????????? ????????????? | | ????????????????????????????????? ????????????? | | ????????????????????????????????? #???????????? | | ????????????????????????????????? ?????????????? | | ?????????????????????????????????????????????????? | | ?????????????????????????????????????????????????? | | ?????????????????????????????????????????????????? | | ?????????????????????????????????????????????????? | | ?????????????????????????????????????????????????? | | ?????????????????????????????????????????????????? | | ?????????????????????????????????????????????????? | +----------------------------------------------------+ Best States ------------- Heat Dissipation 28 Energy Generation 12 Energy Capacity 265 Matter Stores 215 Matter Capacity 300 Sight Range 16 Terrain Scan Density 10 Evasion (%) 55 Salvage Targeting 1 Item Schematics ----------------- None Robot Schematics ------------------ None Fabricated ------------ Nothing Alien Tech Used ----------------- None Achievements -------------- Close Call Challenges ------------ None Game ------ Seed FissionTerrabombBoomstick Manual? 0 Play Time 00:22:12 Cumulative 20.9 hours Start 2022.05.14 @ 10:30:48 End 2022.05.14 @ 10:50:48 Sessions 1 Manual Loads 0 Difficulty Rogue Special Mode None Game No. 12 Rogue 10 Adventurer 0 Explorer 2 Win Type - Total 0 Types 0/0/0/0/0/0/0/0/0 Lore% 21 Gallery% 20 Achievement% 15 Wizard Run 0 Options --------- ASCII 0 Keyboard 0 Movement Numpad Keybinds 0 Fullscreen 1 Font 18/SmallcapsGlow Map View 76x50 Tactical HUD 1 Map Filters NONE Filters NONE Steam 1 RUN: 21a75b45-c6e9-437f-bdd6-db4b806d83c6